bitfinex-derivatives/quotes_BTCF0:USTF0_20240824
["timestamp","ask_amount","ask_price","bid_price","bid_amount"]
[1724475146707,0.13419306,63916.0,63915.0,0.3608]
[1724475147511,0.13419306,63916.0,63915.0,0.45466764]
[1724475148110,0.13319306,63916.0,63915.0,0.45466764]
[1724475148913,0.13019306,63916.0,63915.0,0.45466764]
[1724475149116,0.13419306,63916.0,63915.0,0.45466764]
[1724475149309,0.087352,63916.0,63915.0,0.45466764]
[1724475149610,0.087352,63916.0,63915.0,0.45468836]
[1724475151317,0.13419125,63916.0,63915.0,0.45468836]
[1724475152019,0.13419125,63916.0,63915.0,0.45470331]
[1724475152020,0.087352,63916.0,63915.0,0.45470331]
[1724475152906,0.13418874,63916.0,63915.0,0.45470331]
[1724475154706,0.13418874,63916.0,63915.0,0.53287831]
[1724475158820,0.13418874,63916.0,63915.0,0.17207831]
[1724475159022,0.13418874,63916.0,63915.0,0.53287831]
[1724475159520,0.13418874,63916.0,63915.0,0.53312963]
[1724475162914,0.087352,63916.0,63915.0,0.53312963]
[1724475164414,0.087352,63916.0,63915.0,0.53316882]
[1724475166321,0.087352,63916.0,63915.0,0.17236882]
[1724475166523,0.087352,63916.0,63915.0,0.53316882]
[1724475166839,0.087352,63916.0,63915.0,0.17236882]
[1724475167013,0.087352,63916.0,63915.0,0.53316882]
[1724475168027,0.078352,63916.0,63915.0,0.53316882]
[1724475168219,0.087352,63916.0,63915.0,0.53316882]
[1724475169222,0.082352,63916.0,63915.0,0.53322563]
[1724475169428,0.087352,63916.0,63915.0,0.53322563]
[1724475169613,0.083352,63916.0,63915.0,0.53322563]
[1724475169818,0.087352,63916.0,63915.0,0.53322563]
[1724475170121,0.087352,63916.0,63915.0,0.17242563]
[1724475170322,0.083352,63916.0,63915.0,0.53322563]
[1724475170524,0.087352,63916.0,63915.0,0.53322563]
[1724475172230,0.087352,63916.0,63915.0,0.17242563]
[1724475172529,0.087352,63916.0,63915.0,0.53322563]
[1724475174417,0.087352,63916.0,63915.0,0.53324127]
[1724475178232,0.087352,63916.0,63915.0,0.17244127]
[1724475178535,0.087352,63916.0,63915.0,0.53324127]
[1724475178734,0.083352,63916.0,63915.0,0.17244127]
[1724475178924,0.094352,63916.0,63915.0,0.17244127]
[1724475179435,0.094352,63916.0,63915.0,0.53324127]
[1724475180433,0.094352,63916.0,63915.0,0.45506627]
[1724475182839,0.094352,63916.0,63915.0,0.45508138]
[1724475187042,0.094352,63916.0,63915.0,0.09428138]
[1724475187346,0.094352,63916.0,63915.0,0.45508138]
[1724475189547,0.14119733,63916.0,63915.0,0.45508138]
[1724475194155,0.14119733,63916.0,63915.0,0.09428138]
[1724475194352,0.14119733,63916.0,63915.0,0.45508138]
[1724475195262,0.094352,63916.0,63915.0,0.45508138]
[1724475196655,0.094352,63916.0,63915.0,0.09428138]
[1724475196851,0.094352,63916.0,63915.0,0.45508138]
[1724475197558,0.016178,63916.0,63915.0,0.53325638]
[1724475198456,0.016178,63916.0,63915.0,0.62707724]
[1724475199867,0.016178,63916.0,63915.0,0.63541514]
[1724475200858,0.016178,63916.0,63915.0,0.54159428]
[1724475201255,0.016178,63916.0,63915.0,1.01095428]
[1724475201457,0.04685738,63926.0,63916.0,0.46936]
[1724475201659,0.04685738,63928.0,63926.0,0.078162]
[1724475201857,0.078158,63929.0,63927.0,0.09563427]
[1724475202059,0.078158,63929.0,63928.0,0.09563427]
[1724475202457,0.07820894,63929.0,63928.0,0.09632746]
[1724475202761,0.07820894,63929.0,63928.0,0.07807064]
[1724475203565,0.07820894,63929.0,63926.0,0.15623264]
[1724475203566,0.09220894,63929.0,63926.0,0.15623264]
[1724475204259,0.10620894,63929.0,63928.0,0.001]
[1724475204664,0.10620894,63929.0,63925.0,0.43887064]
[1724475204865,0.10520894,63929.0,63926.0,0.001]
[1724475205160,0.09120894,63929.0,63926.0,0.001]
[1724475205467,0.10520894,63929.0,63926.0,0.002]
[1724475205860,0.10520894,63929.0,63928.0,0.078159]
[1724475206258,0.10520894,63929.0,63928.0,0.25179085]
[1724475206259,0.02705094,63929.0,63928.0,0.25179085]
[1724475206464,0.02705094,63929.0,63928.0,0.078159]
[1724475206770,0.02705094,63929.0,63928.0,0.1739788]
[1724475206970,0.02805094,63929.0,63928.0,0.1749788]
[1724475207166,0.02805094,63929.0,63928.0,0.25294117]
[1724475207869,0.02805094,63929.0,63928.0,0.15712137]
[1724475208657,0.02805094,63929.0,63928.0,0.079159]
[1724475210964,0.02805094,63929.0,63928.0,0.800759]
[1724475213067,0.02805094,63929.0,63928.0,1.670039]
[1724475215667,0.02805094,63929.0,63928.0,0.548439]
[1724475215873,0.02805094,63929.0,63928.0,1.270039]
[1724475218876,0.02805094,63929.0,63928.0,1.670039]
[1724475219073,0.02805094,63929.0,63928.0,1.74800137]
[1724475219274,0.02805094,63929.0,63928.0,1.670039]
[1724475221875,0.02805094,63929.0,63928.0,0.948439]
[1724475222180,0.02805094,63929.0,63928.0,1.74800137]
[1724475222380,0.02805094,63929.0,63928.0,1.670039]
[1724475222582,0.02805094,63929.0,63928.0,1.34800137]
[1724475223472,0.02805094,63929.0,63928.0,0.72123308]
[1724475223873,0.02805094,63929.0,63928.0,1.44283308]
[1724475225482,0.02805094,63929.0,63928.0,1.36487071]
[1724475226676,0.02805094,63929.0,63928.0,0.64327071]
[1724475226884,0.02805094,63929.0,63928.0,1.36487071]
[1724475227086,0.02805094,63929.0,63928.0,1.36489399]
[1724475229479,0.02805094,63929.0,63928.0,0.98936465]
[1724475230387,0.02805094,63929.0,63928.0,0.81745499]
[1724475230685,0.10620894,63929.0,63928.0,0.81745499]
[1724475231880,0.10620894,63929.0,63928.0,0.81828533]
[1724475233683,0.10620894,63929.0,63928.0,0.09668533]
[1724475233891,0.15306632,63929.0,63928.0,0.001]
[1724475234286,0.10620894,63929.0,63928.0,0.001]
[1724475234483,0.15300578,63929.0,63928.0,0.001]
[1724475235283,0.15300854,63929.0,63928.0,0.001]
[1724475237685,0.10620894,63929.0,63928.0,0.001]
[1724475238097,0.20180854,63929.0,63928.0,0.001]
[1724475238492,0.15500894,63929.0,63928.0,0.001]
[1724475238897,0.20180854,63929.0,63928.0,0.001]
[1724475239192,0.15500894,63929.0,63928.0,0.001]
[1724475242293,0.20180854,63929.0,63928.0,0.001]
[1724475242791,0.15500894,63929.0,63928.0,0.001]
[1724475245699,0.15500894,63929.0,63928.0,0.06344595]
[1724475247500,0.10620894,63929.0,63928.0,0.06344595]
[1724475247695,0.10620894,63929.0,63928.0,0.001]
[1724475248107,0.10620894,63929.0,63928.0,0.0634079]
[1724475248692,0.10620894,63929.0,63928.0,0.001]
[1724475250999,0.10620894,63929.0,63928.0,0.06341435]
[1724475257612,0.10620894,63929.0,63928.0,0.001]
[1724475259404,0.15300854,63929.0,63928.0,0.001]
[1724475259608,0.10620894,63929.0,63928.0,0.001]
[1724475263510,0.16862059,63929.0,63928.0,0.001]
[1724475269711,0.10620894,63929.0,63928.0,0.001]
[1724475269904,0.16862059,63929.0,63928.0,0.001]
[1724475270607,0.10620894,63929.0,63928.0,0.001]
[1724475271004,0.16864961,63929.0,63928.0,0.001]
[1724475272414,0.10620894,63929.0,63928.0,0.07910736]
[1724475272707,0.10620894,63929.0,63928.0,0.09726121]
[1724475276709,0.15303308,63929.0,63928.0,0.09726121]
[1724475277412,0.15303308,63929.0,63928.0,0.45806121]
[1724475277808,0.15303308,63929.0,63928.0,0.09726121]
[1724475278005,0.15303308,63929.0,63928.0,0.45806121]
[1724475278805,0.15303308,63929.0,63928.0,0.09726121]
[1724475279011,0.15303308,63929.0,63928.0,0.45806121]
[1724475279910,0.15303308,63929.0,63928.0,0.001]
[1724475280109,0.10620894,63929.0,63928.0,0.45786553]
[1724475281914,0.10620894,63929.0,63928.0,0.53599691]
[1724475283610,0.10620894,63929.0,63928.0,0.3618]
[1724475284008,0.10620894,63929.0,63928.0,0.001]
[1724475294822,0.078159,63928.0,63927.0,0.3388]
[1724475295221,0.078159,63928.0,63927.0,0.41693138]
[1724475295822,0.078199,63928.0,63927.0,0.41693138]
[1724475296225,0.092199,63928.0,63927.0,0.41693138]
[1724475296625,0.092199,63928.0,63927.0,0.3388]
[1724475296819,0.07816,63927.0,63926.0,0.07813138]
[1724475297022,0.07816,63927.0,63926.0,0.1747204]
[1724475297416,0.07816,63927.0,63926.0,0.5355204]
[1724475297620,0.0782,63927.0,63926.0,0.5355204]
[1724475298021,0.0782,63927.0,63926.0,0.1747204]
[1724475298225,0.0922,63927.0,63926.0,0.45738902]
[1724475298427,0.1062,63927.0,63926.0,0.45838902]
[1724475298721,0.15302429,63927.0,63926.0,0.45838902]
[1724475298921,0.15302429,63927.0,63926.0,0.09758902]
[1724475299130,0.15302429,63927.0,63926.0,0.45838902]
[1724475299327,0.1062,63927.0,63926.0,0.45838902]
[1724475300226,0.1062,63927.0,63926.0,0.53653231]
[1724475302428,0.1062,63927.0,63926.0,0.17573231]
[1724475302730,0.1062,63927.0,63926.0,0.53653231]
[1724475303219,0.1062,63927.0,63926.0,0.45829923]
[1724475303530,0.15302828,63927.0,63926.0,0.45829923]
[1724475304029,0.1062,63927.0,63926.0,0.53644444]
[1724475304433,0.1062,63927.0,63926.0,0.17564444]
[1724475304733,0.1062,63927.0,63926.0,0.53644444]
[1724475304932,0.1062,63927.0,63926.0,0.17564444]
[1724475305127,0.1062,63927.0,63926.0,0.53644444]
[1724475305330,0.1062,63927.0,63926.0,0.17564444]
[1724475305533,0.1062,63927.0,63926.0,0.53644444]
[1724475306837,0.1062,63927.0,63926.0,0.17564444]
[1724475307044,0.1062,63927.0,63926.0,0.53644444]
[1724475308045,0.1062,63927.0,63926.0,0.17564444]
[1724475308445,0.1062,63927.0,63926.0,0.45829923]
[1724475309340,0.1062,63927.0,63926.0,0.53645147]
[1724475309544,0.0922,63927.0,63926.0,0.53545147]
[1724475309736,0.1062,63927.0,63926.0,0.53645147]
[1724475310936,0.1062,63927.0,63926.0,0.17565147]
[1724475311235,0.1062,63927.0,63926.0,0.53645147]
[1724475311437,0.1062,63927.0,63926.0,0.45829923]
[1724475312136,0.1062,63927.0,63926.0,0.09749923]
[1724475312336,0.1062,63927.0,63926.0,0.45829923]
[1724475313138,0.1062,63927.0,63926.0,0.45837327]
[1724475314938,0.1062,63927.0,63926.0,0.09757327]
[1724475315249,0.1062,63927.0,63926.0,0.45837327]
[1724475316048,0.1062,63927.0,63926.0,0.09757327]
[1724475316447,0.1062,63927.0,63926.0,0.45837327]
[1724475317042,0.1062,63927.0,63926.0,0.09757327]
[1724475317248,0.1062,63927.0,63926.0,0.45837327]
[1724475317946,0.1062,63927.0,63926.0,0.09757327]
[1724475318149,0.1062,63927.0,63926.0,0.4583841]
[1724475318952,0.1062,63927.0,63926.0,0.0975841]
[1724475319452,0.18436,63927.0,63926.0,0.3618]
[1724475319648,0.54516,63927.0,63926.0,0.001]
[1724475319847,0.60912946,63927.0,63926.0,0.06354613]
[1724475320047,0.60912946,63927.0,63926.0,0.002]
[1724475320048,0.62312946,63927.0,63926.0,0.002]
[1724475320243,0.53116,63927.0,63926.0,0.001]
[1724475320451,0.62312946,63927.0,63926.0,0.002]
[1724475320655,0.60912946,63927.0,63926.0,0.001]
[1724475320956,0.54516,63927.0,63926.0,0.002]
[1724475321351,1.63444,63927.0,63926.0,0.002]
[1724475321552,1.63444,63927.0,63926.0,0.0478748]
[1724475321553,1.29840946,63927.0,63926.0,0.0478748]
[1724475321747,1.31240946,63927.0,63926.0,0.0488748]
[1724475322149,1.23444,63927.0,63926.0,0.002]
[1724475327552,0.87364,63927.0,63926.0,0.002]
[1724475327852,1.23444,63927.0,63926.0,0.002]
[1724475329456,0.87364,63927.0,63926.0,0.002]
[1724475329652,1.23444,63927.0,63926.0,0.002]
[1724475330656,0.76516,63927.0,63926.0,0.002]
[1724475331361,1.3126,63927.0,63926.0,0.002]
[1724475331553,0.84332,63927.0,63926.0,0.002]
[1724475336460,0.078166,63922.0,63920.0,0.0468748]
[1724475336665,0.0623338,63921.0,63919.0,0.0468748]
[1724475336965,0.078172,63917.0,63916.0,0.0489]
[1724475337160,0.156344,63917.0,63916.0,0.0489]
[1724475337764,0.20309408,63917.0,63916.0,0.0489]
[1724475337959,0.20213408,63917.0,63916.0,0.0489]
[1724475338155,0.155384,63917.0,63916.0,0.0489]
[1724475338355,0.21058118,63917.0,63916.0,0.0489]
[1724475339260,0.21458118,63917.0,63916.0,0.0489]
[1724475339655,0.21958118,63917.0,63916.0,0.0489]
[1724475339957,0.21558118,63917.0,63916.0,0.0499]
[1724475340364,0.22158118,63917.0,63916.0,0.0509]
[1724475341955,0.1748311,63917.0,63916.0,0.0509]
[1724475344067,0.22158921,63917.0,63916.0,0.0509]
[1724475345158,0.1748311,63917.0,63916.0,0.0509]
[1724475347169,0.1748311,63917.0,63916.0,0.11344613]
[1724475349166,0.1748311,63917.0,63916.0,0.0509]
[1724475349167,0.2371649,63917.0,63916.0,0.0509]
[1724475349966,0.1748311,63917.0,63916.0,0.0509]
[1724475351268,0.2371649,63917.0,63916.0,0.0509]
[1724475358670,0.078176,63914.0,63913.0,0.07641489]
[1724475359875,0.082176,63914.0,63913.0,0.07641489]
[1724475360075,0.078177,63913.0,63912.0,0.00019594]
[1724475360377,0.078177,63913.0,63912.0,0.09882077]
[1724475362174,0.12599938,63913.0,63912.0,0.09882077]
[1724475362683,0.12699938,63913.0,63912.0,0.09882077]
[1724475362874,0.080177,63913.0,63912.0,0.09882077]
[1724475364276,0.080177,63913.0,63912.0,0.17699977]
[1724475365275,0.080177,63913.0,63912.0,0.53779977]
[1724475369483,0.080217,63913.0,63912.0,0.53779977]
[1724475372686,0.080217,63913.0,63912.0,0.17699977]
[1724475372985,0.12703855,63913.0,63912.0,0.53779977]
[1724475376188,0.12703855,63913.0,63912.0,0.43917494]
[1724475376487,0.12703855,63913.0,63912.0,0.5377751]
[1724475377286,0.080217,63913.0,63912.0,0.5377751]
[1724475378887,0.080217,63913.0,63912.0,0.1769751]
[1724475381190,0.080217,63913.0,63912.0,0.17694131]
[1724475384194,0.12703855,63913.0,63912.0,0.17694131]
[1724475384404,0.04886155,63913.0,63912.0,0.17694131]
[1724475384797,0.00204,63913.0,63912.0,0.17694131]
[1724475385302,0.04886155,63913.0,63912.0,0.17694131]
[1724475388096,0.00204,63913.0,63912.0,0.17694131]
[1724475388700,0.04884659,63913.0,63912.0,0.17694131]
[1724475389401,0.00204,63913.0,63912.0,0.17694131]
[1724475389699,0.04884714,63913.0,63912.0,0.17694131]
[1724475391101,0.04884714,63913.0,63912.0,0.17704997]
[1724475392513,0.00204,63913.0,63912.0,0.17704997]
[1724475392700,0.00204,63913.0,63912.0,0.17704332]
[1724475394108,0.00204,63913.0,63912.0,0.17701818]
[1724475395504,0.04884714,63913.0,63912.0,0.17701818]
[1724475396202,0.00204,63913.0,63912.0,0.17701818]
[1724475396407,0.080217,63913.0,63912.0,0.17701818]
[1724475396609,0.080217,63913.0,63912.0,0.27076884]
[1724475396799,0.080217,63913.0,63912.0,0.17701818]
[1724475397208,0.12702414,63913.0,63912.0,0.17701818]
[1724475397408,0.080217,63913.0,63912.0,0.17701818]
[1724475401495,0.080217,63913.0,63912.0,0.09883918]
[1724475403297,0.080217,63913.0,63912.0,0.00019594]
[1724475403503,0.080217,63913.0,63912.0,0.09900921]
[1724475404297,0.12702414,63913.0,63912.0,0.09900921]
[1724475405211,0.080217,63913.0,63912.0,0.09900921]
[1724475405907,0.080217,63913.0,63912.0,0.09907278]
[1724475406710,0.12702648,63913.0,63912.0,0.09907278]
[1724475408306,0.080217,63913.0,63912.0,0.09907278]
[1724475410517,0.080217,63913.0,63912.0,0.19282344]
[1724475410909,0.080217,63913.0,63912.0,0.09893775]
[1724475413706,0.080217,63913.0,63912.0,0.19268841]
[1724475415110,0.00204,63913.0,63912.0,0.27086741]
[1724475415615,0.00204,63913.0,63912.0,0.17711675]
[1724475416018,0.00204,63913.0,63912.0,0.27092017]
[1724475416417,0.00204,63913.0,63912.0,1.29212332]
[1724475416802,0.00204,63913.0,63912.0,1.37030232]
[1724475418009,0.00204,63913.0,63912.0,1.29212332]
[1724475419121,0.00204,63913.0,63912.0,2.01372332]
[1724475419330,0.00204,63913.0,63912.0,1.90791675]
[1724475420316,0.00204,63913.0,63912.0,2.01302557]
[1724475420513,0.00204,63913.0,63912.0,2.01131869]
[1724475420715,0.00204,63913.0,63912.0,1.90621028]
[1724475429123,0.00204,63913.0,63912.0,1.18461028]
[1724475429325,0.00204,63913.0,63912.0,0.99141028]
[1724475429826,0.00204,63913.0,63912.0,1.46081028]
[1724475430127,0.00204,63913.0,63912.0,1.46087516]
[1724475430531,0.00204,63913.0,63912.0,0.99147516]
[1724475430822,0.00204,63913.0,63912.0,1.46087516]
[1724475431028,0.00204,63913.0,63912.0,0.99147516]
[1724475431426,0.00204,63913.0,63912.0,1.46087516]
[1724475431622,0.00204,63913.0,63912.0,0.99147516]
[1724475433523,0.00204,63913.0,63912.0,0.26987516]
[1724475433721,0.00204,63913.0,63912.0,0.99147516]
[1724475433925,0.00204,63913.0,63912.0,0.99148902]
[1724475434335,0.00204,63913.0,63912.0,1.09663933]
[1724475435127,0.00204,63913.0,63912.0,1.09645043]
[1724475436023,0.00204,63913.0,63912.0,0.99138053]
[1724475436428,0.00204,63913.0,63912.0,0.99147629]
[1724475438631,0.00204,63913.0,63912.0,0.37504131]
[1724475438930,0.00204,63913.0,63912.0,0.99147629]
[1724475439130,0.00204,63913.0,63912.0,0.26987629]
[1724475439325,0.00204,63913.0,63912.0,0.99147629]
[1724475439629,0.00104,63913.0,63912.0,0.99147629]
[1724475440627,0.00104,63913.0,63912.0,0.89707629]
[1724475441238,4e-05,63913.0,63912.0,0.89707629]
[1724475442339,4e-05,63913.0,63912.0,0.17547629]
[1724475442631,4e-05,63913.0,63912.0,0.89707629]
[1724475443231,4e-05,63913.0,63912.0,1.00239646]
[1724475444322,4e-05,63913.0,63912.0,1.00260563]
[1724475446530,4e-05,63913.0,63912.0,1.00360563]
[1724475447733,4e-05,63913.0,63912.0,1.00380066]
[1724475447931,4e-05,63913.0,63912.0,1.00480066]
[1724475449132,4e-05,63913.0,63912.0,0.80197494]
[1724475449335,4e-05,63913.0,63912.0,1.00489713]
[1724475452832,4e-05,63913.0,63912.0,1.00526198]
[1724475454135,4e-05,63913.0,63912.0,1.00521716]
[1724475459041,4e-05,63913.0,63912.0,1.00448922]
[1724475459838,0.00023453,63919.0,63918.0,0.078172]
[1724475460037,0.00023453,63919.0,63918.0,0.64148628]
[1724475460942,0.00623453,63919.0,63918.0,0.64248628]
[1724475461135,0.00623453,63919.0,63918.0,0.28168628]
[1724475461446,0.00623453,63919.0,63918.0,1.00328628]
[1724475461635,0.01123453,63919.0,63918.0,1.00428628]
[1724475463636,0.01123453,63919.0,63918.0,2.0660111]
[1724475463834,5.094e-05,63929.0,63928.0,0.078159]
[1724475464034,5.094e-05,63929.0,63928.0,0.86087177]
[1724475464342,5.094e-05,63929.0,63928.0,0.75618045]
[1724475465135,0.01405094,63929.0,63928.0,0.75718045]
[1724475465338,0.02805094,63929.0,63928.0,0.75818045]
[1724475465941,0.02805094,63929.0,63928.0,0.85181171]
[1724475466339,0.02805094,63929.0,63928.0,0.75818045]
[1724475467241,0.02805094,63929.0,63928.0,0.54667981]
[1724475468949,0.02805094,63929.0,63928.0,0.54416515]
[1724475470144,0.02805094,63929.0,63928.0,0.63779641]
[1724475470340,0.02805094,63929.0,63928.0,0.63764183]
[1724475470542,0.02805094,63929.0,63928.0,0.54401057]
[1724475472252,0.02805094,63929.0,63928.0,0.90481057]
[1724475473942,0.02805094,63929.0,63928.0,0.90479962]
[1724475475947,0.02805094,63929.0,63928.0,0.18319962]
[1724475476452,0.02805094,63929.0,63928.0,0.90479962]
[1724475477042,0.02805094,63929.0,63928.0,0.982711]
[1724475478548,0.02805094,63929.0,63928.0,0.90479962]
[1724475479061,0.02805094,63929.0,63928.0,0.98271046]
[1724475479355,0.02805094,63929.0,63928.0,0.18319962]
[1724475479551,0.02805094,63929.0,63928.0,0.90479962]
[1724475480858,0.02805094,63929.0,63928.0,0.88817502]
[1724475481461,0.02805094,63929.0,63928.0,0.98310189]
[1724475483156,0.02805094,63929.0,63928.0,0.7236]
[1724475485362,0.15390894,63929.0,63928.0,0.7236]
[1724475487157,0.16246253,63929.0,63928.0,0.3628]
[1724475492366,1.03174253,63929.0,63928.0,0.3628]
[1724475492568,1.03174253,63929.0,63927.0,0.04683531]
[1724475492569,0.46928,63928.0,63927.0,0.04683531]
[1724475492753,0.078161,63927.0,63924.0,0.04683531]
[1724475493067,0.078161,63927.0,63923.0,0.04683531]
[1724475493068,0.078164,63924.0,63923.0,0.04683531]
[1724475493257,0.078165,63923.0,63922.0,0.00023453]
[1724475493453,0.17299602,63923.0,63922.0,0.00023453]
[1724475493661,0.64231602,63923.0,63922.0,0.00023453]
[1724475494059,0.64235602,63923.0,63922.0,0.00023453]
[1724475494261,0.595625,63923.0,63922.0,0.00023453]
[1724475494460,0.595625,63923.0,63922.0,0.00123453]
[1724475494461,0.605625,63923.0,63922.0,0.00123453]
[1724475494872,0.614625,63923.0,63922.0,0.00223453]
[1724475495565,0.145305,63923.0,63922.0,0.00223453]
[1724475497060,1.014625,63923.0,63922.0,0.00223453]
[1724475498770,0.614625,63923.0,63922.0,0.00223453]
[1724475499556,0.145305,63923.0,63922.0,0.00223453]
[1724475502766,0.145305,63923.0,63922.0,0.44120153]
[1724475502767,0.06714,63923.0,63922.0,0.44120153]
[1724475504173,0.01904,63923.0,63922.0,0.50365089]
[1724475505175,0.01904,63923.0,63922.0,0.44120153]
[1724475512675,0.01904,63923.0,63922.0,0.00223453]
[1724475512882,0.097205,63923.0,63922.0,0.00223453]
[1724475513177,0.14393602,63923.0,63922.0,0.00223453]
[1724475513569,0.14389827,63923.0,63922.0,0.00223453]
[1724475514080,0.097205,63923.0,63922.0,0.00223453]
[1724475514675,0.17537,63923.0,63922.0,0.00223453]
[1724475515481,0.64469,63923.0,63922.0,0.00223453]
[1724475516276,0.86469,63923.0,63922.0,0.00223453]
[1724475518375,0.86469,63923.0,63922.0,0.04903942]
[1724475518376,0.39537,63923.0,63922.0,0.04903942]
[1724475519587,1.26469,63923.0,63922.0,0.04903942]
[1724475520390,1.26469,63923.0,63922.0,0.00223453]
[1724475524088,1.62549,63923.0,63922.0,0.00223453]
[1724475526698,1.22549,63923.0,63922.0,0.00223453]
[1724475533500,0.75617,63923.0,63922.0,0.00223453]
[1724475541906,0.75617,63923.0,63922.0,0.04903942]
[1724475542210,0.75617,63923.0,63922.0,0.00223453]
[1724475553120,0.75617,63923.0,63922.0,0.04913509]
[1724475553618,0.78150994,63923.0,63922.0,0.04913509]
[1724475554220,0.83412788,63923.0,63922.0,0.00223453]
[1724475554610,0.75617,63923.0,63922.0,0.00223453]
[1724475554917,0.83412804,63923.0,63922.0,0.00223453]
[1724475555215,0.83412961,63923.0,63922.0,0.00223453]
[1724475555416,0.75617,63923.0,63922.0,0.00223453]
[1724475555613,0.83412891,63923.0,63922.0,0.00223453]
[1724475556507,0.83412865,63923.0,63922.0,0.00223453]
[1724475557010,0.75617,63923.0,63922.0,0.00223453]
[1724475557716,0.75617,63923.0,63922.0,0.04913556]
[1724475557717,0.78151036,63923.0,63922.0,0.04913556]
[1724475559311,0.75617,63923.0,63922.0,0.00223453]
[1724475559913,0.8341291,63923.0,63922.0,0.00223453]
[1724475560512,0.39537,63923.0,63922.0,0.06463439]
[1724475560827,0.39537,63923.0,63922.0,0.00223453]
[1724475561317,0.39537,63923.0,63922.0,0.06476377]
[1724475561522,0.39537,63923.0,63922.0,0.06475699]
[1724475561817,0.39537,63923.0,63922.0,0.00223453]
[1724475562425,0.45772792,63923.0,63922.0,0.00223453]
[1724475562715,0.39537,63923.0,63922.0,0.00223453]
[1724475563117,0.45772785,63923.0,63922.0,0.00223453]
[1724475563423,0.39537,63923.0,63922.0,0.00223453]
[1724475563814,0.45772362,63923.0,63922.0,0.00223453]
[1724475564012,0.39537,63923.0,63922.0,0.00223453]
[1724475564420,0.39537,63923.0,63922.0,0.06474044]
[1724475564617,0.39537,63923.0,63922.0,0.00223453]
[1724475564919,0.39537,63923.0,63922.0,0.06474019]
[1724475566626,0.45773614,63923.0,63922.0,0.06474019]
[1724475566826,0.39537,63923.0,63922.0,0.06473598]
[1724475567027,0.45773721,63923.0,63922.0,0.06473623]
[1724475567223,0.39537,63923.0,63922.0,0.06473623]
[1724475567724,0.39537,63923.0,63922.0,0.06473437]
[1724475567921,0.17537,63923.0,63922.0,0.00223453]
[1724475568116,0.22214398,63923.0,63922.0,0.00223453]
[1724475568321,0.17537,63923.0,63922.0,0.00223453]
[1724475570324,0.17537,63923.0,63922.0,0.06472671]
[1724475570523,0.17537,63923.0,63922.0,0.00223453]
[1724475571130,0.17537,63923.0,63922.0,0.06472516]
[1724475571521,0.17537,63923.0,63922.0,0.06472307]
[1724475571723,0.23773428,63923.0,63922.0,0.00223453]
[1724475571923,0.17537,63923.0,63922.0,0.00223453]
[1724475572831,0.39537,63923.0,63922.0,0.00223453]
[1724475573228,0.457721,63923.0,63922.0,0.00223453]
[1724475574430,0.39537,63923.0,63922.0,0.00223453]
[1724475576235,0.39537,63923.0,63922.0,0.049104]
[1724475578931,0.75617,63923.0,63922.0,0.049104]
[1724475581531,0.39537,63923.0,63922.0,0.049104]
[1724475581739,0.75617,63923.0,63922.0,0.049104]
[1724475583235,0.39537,63923.0,63922.0,0.049104]
[1724475583424,0.75617,63923.0,63922.0,0.049104]
[1724475585938,0.39537,63923.0,63922.0,0.049104]
[1724475586336,0.75617,63923.0,63922.0,0.049104]
[1724475586834,0.39537,63923.0,63922.0,0.049104]
[1724475587029,0.75617,63923.0,63922.0,0.00223453]
[1724475587235,0.8341291,63923.0,63922.0,0.00223453]
[1724475588029,0.4733291,63923.0,63922.0,0.00223453]
[1724475588240,0.8341291,63923.0,63922.0,0.00223453]
[1724475590238,0.75617,63923.0,63922.0,0.00223453]
[1724475591437,0.39537,63923.0,63922.0,0.00223453]
[1724475591743,0.75617,63923.0,63922.0,0.00223453]
[1724475592543,0.75617,63923.0,63922.0,0.049104]
[1724475595843,0.39537,63923.0,63922.0,0.049104]
[1724475596044,0.75617,63923.0,63922.0,0.049104]
[1724475599444,0.8341291,63923.0,63922.0,0.00223453]
[1724475600449,0.156338,63920.0,63919.0,0.06222252]
[1724475601248,0.156378,63920.0,63919.0,0.06222252]
[1724475601644,0.162378,63920.0,63919.0,0.06322252]
[1724475602755,0.169378,63920.0,63919.0,0.06422252]
[1724475603748,0.50774171,63920.0,63913.0,0.07805278]
[1724475603953,0.078178,63913.0,63912.0,0.00023594]
[1724475604150,0.07822894,63913.0,63912.0,0.00023594]
[1724475604449,0.07822894,63913.0,63912.0,0.04712889]
[1724475604650,0.07826894,63913.0,63912.0,0.00023594]
[1724475604858,0.10361413,63913.0,63898.0,0.45443126]
[1724475605053,0.078192,63901.0,63900.0,0.07815935]
[1724475605253,0.078197,63897.0,63895.0,0.07815935]
[1724475605459,0.438997,63897.0,63896.0,0.04685076]
[1724475605656,0.438997,63897.0,63892.0,0.0931]
[1724475605657,0.437997,63897.0,63895.0,0.04685076]
[1724475605953,0.436997,63897.0,63895.0,0.04685076]
[1724475606157,0.436997,63897.0,63896.0,0.04685076]
[1724475606354,0.425997,63897.0,63894.0,0.04685076]
[1724475606554,0.47266885,63897.0,63894.0,0.04685076]
[1724475606858,0.425997,63897.0,63895.0,0.04685076]
[1724475607059,0.426997,63897.0,63896.0,0.04685076]
[1724475607354,0.426997,63897.0,63895.0,0.05785076]
[1724475607557,0.426997,63897.0,63895.0,0.011]
[1724475608062,0.426997,63897.0,63896.0,0.005]
[1724475608063,0.427997,63897.0,63896.0,0.005]
[1724475608258,0.4363033,63897.0,63896.0,0.005]
[1724475608555,0.0755033,63897.0,63896.0,0.005]
[1724475608862,0.002,63897.0,63896.0,0.46952]
[1724475609349,0.00204,63897.0,63896.0,0.46952]
[1724475609547,0.00204,63897.0,63896.0,0.47452]
[1724475610355,0.00204,63897.0,63896.0,0.48312703]
[1724475610556,0.00204,63897.0,63896.0,0.88312703]
[1724475612160,0.00204,63897.0,63896.0,1.24392703]
[1724475615655,0.00204,63897.0,63896.0,0.84392703]
[1724475619866,0.00204,63897.0,63896.0,0.92212503]
[1724475621660,0.00204,63897.0,63896.0,0.45260503]
[1724475622355,0.00204,63897.0,63896.0,0.01360703]
[1724475622560,0.00204,63897.0,63896.0,0.005]
[1724475622759,0.080237,63897.0,63896.0,0.005]
[1724475623459,0.080237,63897.0,63896.0,0.05177422]
[1724475623660,0.080237,63897.0,63896.0,0.005]
[1724475623857,0.079237,63897.0,63894.0,0.04677422]
[1724475624064,0.080237,63897.0,63896.0,0.006]
[1724475625668,0.080237,63897.0,63894.0,0.006]